Cogmind - Beta 16.1 @@@ ROGUE MODE // 2026.03.31 @ 20:17:01 Player: Skrub Result: Destroyed by Triborg with Siege Cannon Performance ------------- Evolutions (0) 0 Regions Visited (4) 800 Robots Destroyed (30) 150 Value Destroyed (635) 635 Prototype IDs (0) 0 Alien Tech Used (0) 0 Bonus (300) 300 TOTAL SCORE: 1885 Bonus ------- Registered with UFD 300 Cogmind --------- Core Integrity 0/250 Matter 291/300 Energy 100/100 System Corruption 8% Temperature Cool (0) Movement Core (100) Ox1 Location -9/Scraptown Parts ------- > --- POWER (1) -------- (None) > --- PROPULSION (2) --- (None) > --- UTILITY (2) ------ Signal Interpreter Hardlight Generator > --- WEAPON (2) ------- (None) > --- INVENTORY (5) ---- Wheel Hardlight Generator Heavy Battle Rifle Light Cannon Battle Cannon Peak State ------------ > --- POWER ------------ Light Angular Momentum Engine > --- PROPULSION ------- Wheel Compact Wheel > --- UTILITY ---------- Signal Interpreter Hardlight Generator > --- WEAPON ----------- Light Cannon Makeshift Axe > --- INVENTORY -------- Wheel Hardlight Generator Heavy Battle Rifle Light Cannon Battle Cannon [Rating: 17] Favorites ----------- Power Light Ion Engine Engine Light Ion Engine Propulsion Compact Wheel Wheel Compact Wheel Utility Signal Interpreter Device Hardlight Generator Processor Signal Interpreter Protection Makeshift Kinetic Plating Weapon Light Cannon Ballistic Gun Light Assault Rifle Ballistic Cannon Light Cannon Slashing Weapon Makeshift Axe Build | -11 -10 -10 -9 -9 ------- Run | Yrd Mat Sub Rec Scr Slots Evolved . | . . . . . Power . | . . . . . Propulsion . | . . . . . Utility . | . . . . . Weapon . | . . . . . Parts Attached 23 | 3 10 7 . 3 Power 7 | 1 1 3 . 2 Engine 7 | 1 1 3 . 2 Core . | . . . . . Reactor . | . . . . . Propulsion 5 | 2 3 . . . Treads . | . . . . . Leg . | . . . . . Wheel 5 | 2 3 . . . Hover . | . . . . . Flight . | . . . . . Utility 3 | . 1 1 . 1 Device 1 | . . . . 1 Storage . | . . . . . Processor 1 | . 1 . . . Hackware . | . . . . . Protection 1 | . . 1 . . Artifact . | . . . . . Weapon 8 | . 5 3 . . Energy Gun . | . . . . . Energy Cannon . | . . . . . Ballistic Gun 2 | . 2 . . . Ballistic Cannon 5 | . 3 2 . . Launcher . | . . . . . Special Weapon . | . . . . . Impact Weapon . | . . . . . Slashing Weapon 1 | . . 1 . . Piercing Weapon . | . . . . . Special Melee Weapon . | . . . . . Unidentified Prototypes . | . . . . . Parts Lost 12 | . 2 5 . 5 Power 4 | . . 3 . 1 Propulsion 4 | . 1 1 . 2 Utility . | . . . . . Weapon 4 | . 1 1 . 2 Highest Loss Streak 3 | . 2 1 . 3 To Critical Strikes . | . . . . . Average Backups 4 | . 3 4 5 4 Power . | . . . . . Propulsion 1 | . 1 . 1 1 Utility . | . . . . . Weapon 2 | . . 3 4 3 Tool/Special . | . . . . . Unused Backups 7 | . . 3 . 4 Power . | . . . . . Propulsion 2 | . . 1 . 1 Utility 1 | . . . . 1 Weapon 4 | . . 2 . 2 Tool/Special . | . . . . . Average Slot Usage (%) 91 | . 78 93 100 95 Engine 12 | . 14 11 14 14 Wheel 27 | . 28 27 28 25 Device 1 | . . . . 4 Processor 13 | . 10 14 14 14 Protection 8 | . . 10 14 9 Ballistic Gun 2 | . 11 . . . Ballistic Cannon 23 | . 14 25 28 26 Slashing Weapon 1 | . . 2 . . Peak Build Rating 17 | 3 6 15 12 17 Average Rating 10 | 2 5 10 12 13 On Entrance 6 | . 3 6 12 12 Avg Prop Armor Cover (%) 19 | 23 18 . . . Naked Turns . | . . . . . Heaviest Build 22 | 3 9 18 18 22 Greatest Support 32 | 10 32 26 26 26 Greatest Overweight (x) 5 | . . . . 5 Average Overweight (x) . | . . . . . Largest Inventory Capacity 5 | 5 5 5 5 5 Average Capacity 5 | 5 5 5 5 5 Most Carried 5 | 2 5 5 5 5 Average Carried 4 | 1 3 4 5 4 Final Capacity 5 | 5 5 5 5 5 Final Carried 5 | 2 3 5 5 5 Class Distribution -------------------- 100% | Mutant Dominant Class ---------------- Mutant | -10/Materials Mutant | -10/Subcaves Mutant | -9/Recycling Mutant | -9/Scraptown Resources | -11 -10 -10 -9 -9 ----------- Run | Yrd Mat Sub Rec Scr Matter Collected 1127 | 165 363 510 . 89 Remotely . | . . . . . Salvage Created 638 | . 391 203 . 44 Parts 51 | . 36 14 . 1 Haulers Intercepted 1 | . 1 . . . Recyclers Shooed . | . . . . . Parts Field Recycled . | . . . . . Retrieved Matter . | . . . . . Parts Self-Destructed 12 | . . 11 . 1 Prevented . | . . . . . Parts Restored . | . . . . . Kills | -11 -10 -10 -9 -9 ------- Run | Yrd Mat Sub Rec Scr Combat Hostiles Destroyed 27 | . 15 12 . . Guns 5 | . 5 . . . Cannons 22 | . 10 12 . . Classes Destroyed 6 | . 5 1 . . Builder 1 | . 1 . . . Hauler 1 | . 1 . . . Watcher 1 | . 1 . . . Swarmer 14 | . 7 7 . . Grunt 8 | . 8 . . . Subdweller 5 | . . 5 . . Best Kill Streak 5 | . 5 4 . . Combat Bots Only 4 | . 4 4 . . Max Kills in Single Turn 2 | . 2 1 . . Gunslinging . | . . . . . Exploded . | . . . . . Melee . | . . . . . Uniques/NPCs Destroyed . | . . . . . Combat | -11 -10 -10 -9 -9 -------- Run | Yrd Mat Sub Rec Scr Hostile Shots Fired 146 | . 77 68 . 1 Missed 43 | . 21 22 . . Hits 103 | . 56 46 . 1 Projectile 103 | . 56 46 . 1 Damage Taken 1483 | . 540 621 . 322 Core 338 | . 131 118 . 89 Absorbed by Shields 4 | . . . . 4 Ignored by Resistances 4 | . . 4 . . Core Remaining (%) 100 | 100 . . . . Volleys Fired 90 | . 46 44 . . Largest 2 | . 2 2 . . Hottest 60 | . 60 60 . . Shots Fired 180 | . 91 88 . 1 Gun 32 | . 32 . . . Cannon 148 | . 59 88 . 1 Launcher . | . . . . . Special . | . . . . . Kinetic 180 | . 91 88 . 1 Thermal . | . . . . . Explosive . | . . . . . Electromagnetic . | . . . . . Robot Hit Streak 9 | . 9 8 . . Robot Miss Streak 6 | . 6 3 . . Penetration Max . | . . . . . Secondary Targets 1 | . 1 . . . Max Gunslinging Chain 1 | . 1 . . . Shots Hit Robots 77 | . 44 32 . 1 Core Hits 37 | . 20 16 . 1 Critical Kills . | . . . . . Critical Parts Destroyed . | . . . . . Critical Strikes . | . . . . . Melee Attacks 38 | . . 14 . 24 Impact . | . . . . . Slashing 38 | . . 14 . 24 Piercing . | . . . . . Sneak Attacks . | . . . . . Combat Hostiles . | . . . . . Follow-up Attacks . | . . . . . Damage Inflicted 1335 | . 688 584 . 63 Guns 210 | . 210 . . . Cannons 1058 | . 478 580 . . Explosions . | . . . . . Melee 63 | . . . . 63 Ramming 4 | . . 4 . . Kinetic 1268 | . 688 580 . . Thermal . | . . . . . Explosive . | . . . . . Electromagnetic . | . . . . . Impact . | . . . . . Slashing 63 | . . . . 63 Piercing . | . . . . . Highest Corruption 8 | . . . . 8 Average Corruption 8 | . . . . 8 Corruption Purged . | . . . . . Corruption Blocked . | . . . . . Effects 6 | . . . . 6 Matter Fused 2 | . . . . 2 Data Loss (minor) 2 | . . . . 2 Data Loss (major) 1 | . . . . 1 Misfires 1 | . . . . 1 Overload Shots . | . . . . . Overflow Damage . | . . . . . Projectiles . | . . . . . Explosions . | . . . . . Melee . | . . . . . Knockbacks 10 | . 4 6 . . Impact . | . . . . . Kinetic 9 | . 4 5 . . Secondary 1 | . . 1 . . Self-Inflicted Damage 2 | . . 2 . . Shots . | . . . . . Rammed 1 | . . 1 . . Targets Rammed 1 | . . 1 . . Kicked . | . . . . . Crushed . | . . . . . Highest Temperature 18 | . 18 . . . Average Temperature 8 | . 8 . . . Received Heat Transfer 309 | . 186 123 . . Siege Activations . | . . . . . Martial Activations . | . . . . . Shielding Activations . | . . . . . Robots Disrupted . | . . . . . Combat Hostiles . | . . . . . Robots Corrupted . | . . . . . Combat Hostiles . | . . . . . Parts Fried . | . . . . . Impact Corruptions . | . . . . . Robots Melted . | . . . . . Combat Hostiles . | . . . . . Parts Melted . | . . . . . Heat Transferred . | . . . . . Parts Sabotaged . | . . . . . Parts Stolen . | . . . . . Parts Stripped . | . . . . . Power Chain Reactions . | . . . . . Alert | -11 -10 -10 -9 -9 ------- Run | Yrd Mat Sub Rec Scr Maximum Alert Level 1 | . 1 . . . Low Security (%) 72 | 100 70 . 100 . Level 1 27 | . 29 . . . Level 2 . | . . . . . Level 3 . | . . . . . Level 4 . | . . . . . Level 5 . | . . . . . High Security . | . . . . . Max Security . | . . . . . Peak Influence 293 | . 293 . . . Initial . | . . . . . Average 104 | . 114 . . . Influence Increases 840 | . 535 300 . 5 Destroy 0b10 Robot/C 440 | . 300 140 . . Destroy 0b10 Robot/NC 20 | . 15 . . 5 Destroy Leader 64 | . 54 10 . . Successful Hack 12 | . 12 . . . Destroy Structure 4 | . 4 . . . Lose Combat Pursuer 300 | . 150 150 . . Influence Decreases 840 | . 289 546 . 5 Entered New Map 119 | . . 119 . . Time Decay 660 | . 269 387 . 4 Lost Part 61 | . 20 40 . 1 Squads Dispatched 2 | . 2 . . . Investigation 1 | . 1 . . . Extermination . | . . . . . Reinforcement 1 | . 1 . . . Assault . | . . . . . Garrison . | . . . . . Intercept . | . . . . . Searches Triggered . | . . . . . Construction Impeded . | . . . . . Haulers Reinforced . | . . . . . Active Scanning Responses . | . . . . . Cargo Convoy Interrupts . | . . . . . Stealth | -11 -10 -10 -9 -9 --------- Run | Yrd Mat Sub Rec Scr Distress Signals 4 | . 4 . . . Communications Jammed . | . . . . . Distress Signals . | . . . . . Times Spotted 49 | . 29 20 . . Peak Tracking Total 7 | . 6 6 . 7 Tactical Retreats 12 | . 6 6 . . Traps | -11 -10 -10 -9 -9 ------- Run | Yrd Mat Sub Rec Scr Traps Triggered 3 | . 1 2 . . Indirectly . | . . . . . Trap Hack Attempts . | . . . . . Triggered . | . . . . . Disarmed . | . . . . . Reprogrammed . | . . . . . Reused . | . . . . . Traps Extracted . | . . . . . Installed . | . . . . . Triggered . | . . . . . Machines | -11 -10 -10 -9 -9 ---------- Run | Yrd Mat Sub Rec Scr Machines Disabled . | . . . . . Max in Single Turn . | . . . . . Machines Repaired . | . . . . . Machines Dismantled . | . . . . . Machines Sabotaged . | . . . . . Overloaded Fab Kills . | . . . . . Hacking | -11 -10 -10 -9 -9 --------- Run | Yrd Mat Sub Rec Scr Machines Accessed 12 | . 7 1 1 3 Terminals 7 | . 7 . . . Fabricators . | . . . . . Repair Stations . | . . . . . Recycling Units 1 | . . . 1 . Scanalyzers . | . . . . . Garrison Access . | . . . . . Total Hacks 42 | . 24 4 1 13 Successful 30 | . 13 4 . 13 Failed 12 | . 11 . 1 . Catastrophic 2 | . 1 . 1 . Database Lockouts . | . . . . . Manual 26 | . 24 1 1 . Terminals 24 | . 24 . . . Fabricators . | . . . . . Repair Stations . | . . . . . Recycling Units 1 | . . . 1 . Scanalyzers . | . . . . . Garrison Access . | . . . . . Terminal Hacks 19 | . 2 4 . 13 Record 17 | . . 4 . 13 Emergency Access Points 1 | . 1 . . . Terminal Index 1 | . 1 . . . Fabricator Hacks . | . . . . . Repair Station Hacks . | . . . . . Recycling Unit Hacks . | . . . . . Scanalyzer . | . . . . . Garrison Access Hacks . | . . . . . Unauthorized Hacks 11 | . 11 . . . Terminals 11 | . 11 . . . Botnet 7 | . 7 . . . Skim 4 | . 4 . . . Fabricators . | . . . . . Repair Stations . | . . . . . Recycling Units . | . . . . . Scanalyzers . | . . . . . Garrison Access . | . . . . . Data Cores Recovered . | . . . . . Used . | . . . . . Hacking Detections 6 | . 5 . 1 . Full Trace Events . | . . . . . Feedback Events . | . . . . . Feedback Blocked . | . . . . . Robot Schematics Acquired . | . . . . . Robots Built . | . . . . . Authchips . | . . . . . Time . | . . . . . Total Robot Build Rating . | . . . . . Part Schematics Acquired . | . . . . . Parts Built . | . . . . . Authchips . | . . . . . Time . | . . . . . Total Part Build Rating . | . . . . . Part Studies Acquired . | . . . . . Parts Repaired . | . . . . . Time . | . . . . . Parts Recycled . | . . . . . Recycled Matter . | . . . . . Retrieved Matter . | . . . . . Retrieved Components . | . . . . . Parts Scanalyzed . | . . . . . Part Schematics Acquired . | . . . . . Parts Damaged . | . . . . . Bothacking | -11 -10 -10 -9 -9 ------------ Run | Yrd Mat Sub Rec Scr Used RIF Installer . | . . . . . Robots Hacked . | . . . . . Non-combat . | . . . . . Combat . | . . . . . Robot Hacks Applied . | . . . . . Relay Couplers Released . | . . . . . Fabnet Peak Effective % . | . . . . . Robots Rewired . | . . . . . Allies Hacked . | . . . . . Hacks Repelled . | . . . . . Allies | -11 -10 -10 -9 -9 -------- Run | Yrd Mat Sub Rec Scr Total Allies . | . . . . . Largest Group . | . . . . . Highest-Rated Group . | . . . . . Highest-Rated Ally . | . . . . . Total Orders . | . . . . . Ally Attacks . | . . . . . Total Damage . | . . . . . Kills . | . . . . . Allies Corrupted . | . . . . . Allies Melted . | . . . . . Intel | -11 -10 -10 -9 -9 ------- Run | Yrd Mat Sub Rec Scr Active Infowar (turns) . | . . . . . Robot Analysis Total . | . . . . . Derelict Logs Recovered 2 | . . 2 . . Drone Launches . | . . . . . Drone Recoveries . | . . . . . Exploration | -11 -10 -10 -9 -9 ------------- Run | Yrd Mat Sub Rec Scr Turns Passed 4304 | 27 899 1828 65 1485 Spaces Moved 3775 | 39 521 1724 73 1418 Core 171 | 38 118 . . 15 Treads . | . . . . . Legs . | . . . . . Wheels 3604 | 1 403 1724 73 1403 Hover . | . . . . . Flight . | . . . . . Fastest Speed 50 | 50 50 90 90 90 Average Speed 90 | 50 87 90 90 92 Slowest Speed 300 | 80 100 100 90 300 Overloaded Moves . | . . . . . Propulsion Burnouts . | . . . . . Robots Hopped . | . . . . . Potential Cave-ins 12 | . . . . 12 Cave-ins Triggered 1 | . . . . 1 Exploration Rate (%) 51 | 3 79 84 16 77 Regions Visited 4 Branch Regions 3 Pre-discovered Areas . | . . . . . Known Exits Taken 3 | . 1 1 1 . Unknown Exits Taken 1 | 1 . . . . Scrap Searched 11 | . . 7 . 4 Spaces Dug 14 | . . 3 . 11 Terrain Destroyed 14 | . . 3 . 11 Melee 14 | . . 3 . 11 Projectile . | . . . . . AOE . | . . . . . Terrain Rammed . | . . . . . Walls Destroyed . | . . . . . Machines Disabled . | . . . . . Actions | -11 -10 -10 -9 -9 --------- Run | Yrd Mat Sub Rec Scr Total 4454 | 44 877 1890 72 1571 Wait 495 | 1 289 84 . 121 Move 3770 | 38 520 1723 72 1417 Hop . | . . . . . Pick Up 16 | 2 5 8 . 1 Fast Attach 16 | 3 7 3 . 3 Attach 7 | . 4 3 . . Detach . | . . . . . Swap 8 | . . 7 . 1 Drop 12 | . 6 3 . 3 Fire 90 | . 46 44 . . Melee 38 | . . 14 . 24 Ram 1 | . . 1 . . Kick . | . . . . . Crush . | . . . . . Escape Stasis 1 | . . . . 1 Rewire . | . . . . . Trap . | . . . . . Miscellaneous . | . . . . . Route ------- -11/Scrapyard -10/Materials (discovered 4 exits: *Mat x2 / [*Min] / *Sub) -10/Subcaves (discovered 3 exits: *Mat x2 / *Rec) -9/Recycling -9/Scraptown (discovered 1 exit: *Fac) History --------- Turn | Location | Event 14 | -11/Scrapyard | Discovered new exit (range 15) 28 | -11/Scrapyard | Entered Materials 311 | -10/Materials | Build established: Mutant 340 | -10/Materials | Discovered new exit (range 9) 445 | -10/Materials | Discovered new exit (range 8) 451 | -10/Materials | Identified exit to Materials 744 | -10/Materials | Core integrity fell below 50% 766 | -10/Materials | Discovered exit to Materials (range 7) 899 | -10/Materials | Discovered new exit (range 6) 926 | -10/Materials | Identified exit to Subcaves 927 | -10/Materials | Entered Subcaves 1382 | -10/Subcaves | Shifting Twisted Machinery released Spk. Treads 1399 | -10/Subcaves | Discovered new exit (range 12) 1401 | -10/Subcaves | Shifting Twisted Machinery released Sub. Machine Gun 1403 | -10/Subcaves | Discovered new exit (range 4) 1408 | -10/Subcaves | Identified exit to Materials 1501 | -10/Subcaves | Visited Clippyterm 1504 | -10/Subcaves | Learned Research security intel 1504 | -10/Subcaves | Learned Factory stockpile data 1585 | -10/Subcaves | Learned Materials security intel 2259 | -10/Subcaves | Discovered new exit (range 3) 2261 | -10/Subcaves | Identified exit to Recycling 2326 | -10/Subcaves | Shifting Twisted Machinery released Mak. Laser 2602 | -10/Subcaves | Core integrity fell below 20% 2755 | -10/Subcaves | Entered Recycling 2796 | -9/Recycling | Scanned before Scraplab entrance 2810 | -9/Recycling | Entered Scraplab 2819 | -9/Recycling | Discovered new exit (range 2) 2819 | -9/Recycling | Identified exit to Scraptown 2820 | -9/Recycling | Entered Scraptown 2968 | -9/Scraptown | Visited UFD Registry 2968 | -9/Scraptown | Registered with UFD as "Electrobomber" 2981 | -9/Scraptown | Visited SPCMW 3021 | -9/Scraptown | Visited Comm Corps 3058 | -9/Scraptown | Visited Fellowship of the Rings 3126 | -9/Scraptown | Discovered new exit (range 13) 3145 | -9/Scraptown | Identified exit to Factory 3174 | -9/Scraptown | Guru changed UFD alias to "Longskull" 3209 | -9/Scraptown | Heard Great Nut preacher, LISTEN AND RECITE! 3379 | -9/Scraptown | Visited Red Mages 3422 | -9/Scraptown | Visited CPS Storage 3453 | -9/Scraptown | Visited The Evicted 3649 | -9/Scraptown | Visited Cyclists 3664 | -9/Scraptown | Entered Cyclist Reading Room 3872 | -9/Scraptown | Visited Supply Room 3895 | -9/Scraptown | Visited Derelict Rescue Squad 3932 | -9/Scraptown | Visited Research Penetration Think Tank 4127 | -9/Scraptown | Attacked by Scraptown defenders 4166 | -9/Scraptown | Crushed by falling debris 4197 | -9/Scraptown | Lost 3 parts (2n1w) 4305 | -9/Scraptown | Destroyed by Triborg with Siege Cannon Last Messages --------------- 04168_ System corrupted: Matter fused (-6). 04173_ The unstable cave ceiling collapses. 04173_ 24 Matter crushed. 04190_ System corrupted: Component data lost. 04211_ The unstable cave ceiling collapses. 04216_ System corrupted: Substantial component data lost. 04227_ ANNOUNCEMENT: Triborg tracking relay activated. Stay clear or you only have yourself to blame! 04231_ System corrupted: Matter fused (-9). 04234_ The unstable cave ceiling collapses. 04247_ System corrupted: FCS attempts to trigger Lgt. Cannon. 04247_ System corrupted: Lgt. Cannon misfires. 04276_ System corrupted: Component data lost. 04305_ Siege Slug penetrates Reinforced Barrier. 04305_ Penetrated by Siege Slug. 04305_ Lgt. Cannon destroyed. 04305_ Lgt. Angular Momentum Engine destroyed. Map ----- +----------------------------------------------------+ | ?????? ???????????????????????????????? | | ?????? "???????????????????????????????? | | ??????" "???????????????????????????????? | | ??????" "#??????????????????????????????? | | ??????" "#??????????????????????????????? | | ?????"" "#??????????????????????????????? | | ????#"" "#??????????????????????????????? | | #####"" "#??#???????????????????????????? | | """"""" "## "???????????????????????????? | | """"""" ?????????????????????????????? | | "#??????????????????????????????? | | "#??????????????????????????????? | | "#??????????????????????????????? | | ##?????????????????????????????? | | #?????????????????????????????? | | """ """""" ##?????????????????????????????? | | ### ###### #??????????????????????????????? | | "#??# #??????????????????????????????? | | ""#??# #??????????????????????????????? | | ""#??# #??????????????????????????????? | | ""#??# #??????????????????????????????? | | ""#??# #??????????????????????????????? | | """""#??# ####################???????????? | | """"""#??# # ## #######???????? | | #######??# ## # # ##???????? | | ?????????# #@ #########???????? | | ?????????# # % #??????????????? | | ?????????# # ####??????????????? | | ?????????# ##########"#;#?????????????????? | | ########## #####????#####?????????????????? | | #"""##"|"# """"#?????###??????????????????? | | #"" ##" # "" "#??????????????????????????? | | "#??????????????????????????? | | " "#??????????????????????????? | | """"#??????????????????????????? | | #!! ##""|## ######??????????????????????????? | | #"""##"""####???????????????????????????????? | | ##########??????????????????????????????????? | | ????????????????????????????????????????????? | | ????????????????????????????????????????????? | | ????????????????????????????????????????????? | | ????????????????????????????????????????????? | | ????????????????????????????????????????????? | | ????????????????????????????????????????????? | | ????????????????????????????????????????????? | | ????????????????????????????????????????????? | | ????????????????????????????????????????????? | | ????????????????????????????????????????????? | | ????????????????????????????????????????????? | | ????????????????????????????????????????????? | +----------------------------------------------------+ Best States ------------- Heat Dissipation 25 Energy Generation 18 Energy Capacity 250 Matter Stores 300 Matter Capacity 300 Sight Range 16 Terrain Scan Density 10 Armor Coverage 100 Resistance: KI 10 Evasion (%) 50 Item Schematics ----------------- None Robot Schematics ------------------ None Fabricated ------------ Nothing Repaired ---------- Nothing Studied --------- None Alien Tech Used ----------------- None Achievements -------------- Bob, First Of His Name Longdome?! Part-time Excavator Challenges ------------ None Game ------ Seed SubdwellerAssaultShooter Manual? 0 Play Time 00:49:16 Cumulative 24.7 hours Start 2026.03.29 @ 15:56:07 End 2026.03.31 @ 20:17:01 Sessions 7 Manual Loads 0 Difficulty Rogue Special Mode None Game No. 37 Rogue 37 Adventurer 0 Explorer 0 Win Type - Total 0 Types 0/0/0/0/0/0/0/0/0/0 Lore% 19 Gallery% 22 Achievement% 22 Wizard Run 0 Options --------- Layout 1 ASCII 0 Keyboard 0 Movement Mouse Keybinds 0 Fullscreen 1 Font 48/Smallcaps Map View 50x35 Zoom Use 0% Tactical HUD 1 Map Filters NONE Filters NONE Steam 1 RUN: f2593bde-ec52-4aca-8930-0a84988bc213